[Event "*** Titled Tuesday Blitz"]
[Site "Chess.com"]
[Date "2020.04.14"]
[Round "7"]
[White "SahajGrover"]
[Black "Nbk90"]
[Result "1-0"]
[WhiteElo "2697"]
[BlackElo "2524"]
[TimeControl "180+1"]
[EndTime "11:14:17 PDT"]
[Termination "SahajGrover won on time"]

1. d4 {[%clk 0:03:00.5]} 1... Nf6 {[%clk 0:02:58.9]} 2. c4 {[%clk 0:03:01]} 2...
g6 {[%clk 0:02:59.5]} 3. Nc3 {[%clk 0:03:00.2]} 3... Bg7 {[%clk 0:03:00]} 4. e4
{[%clk 0:02:59.7]} 4... O-O {[%clk 0:03:00.6]} 5. f3 {[%clk 0:02:59]} 5... d6
{[%clk 0:03:00.1]} 6. Nge2 {[%clk 0:02:59.2]} 6... a6 {[%clk 0:03:00]} 7. Be3
{[%clk 0:02:57.2]} 7... Nbd7 {[%clk 0:03:00.1]} 8. Qd2 {[%clk 0:02:54]} 8... b5
{[%clk 0:02:54.3]} 9. h4 {[%clk 0:02:43]} 9... Re8 {[%clk 0:02:44.6]} 10. h5
{[%clk 0:02:34.6]} 10... e5 {[%clk 0:02:37.9]} 11. d5 {[%clk 0:02:29.7]} 11...
bxc4 {[%clk 0:02:36.8]} 12. g4 {[%clk 0:02:24.6]} 12... Nc5 {[%clk 0:02:24.1]}
13. Ng3 {[%clk 0:02:24.3]} 13... Rb8 {[%clk 0:02:10.4]} 14. Bxc4 {[%clk
0:02:17.6]} 14... Rb4 {[%clk 0:02:03.1]} 15. b3 {[%clk 0:02:17.8]} 15... a5
{[%clk 0:02:01.8]} 16. Bh6 {[%clk 0:02:10.8]} 16... Bh8 {[%clk 0:01:57.1]} 17.
hxg6 {[%clk 0:02:08.8]} 17... fxg6 {[%clk 0:01:45.6]} 18. Be3 {[%clk 0:01:59.1]}
18... Nfd7 {[%clk 0:01:28.7]} 19. Qh2 {[%clk 0:01:53.8]} 19... Qe7 {[%clk
0:01:24.4]} 20. Kd2 {[%clk 0:01:51.5]} 20... Rxc4 {[%clk 0:01:17.4]} 21. bxc4
{[%clk 0:01:51]} 21... Nb6 {[%clk 0:01:11.6]} 22. Nf5 {[%clk 0:01:37]} 22...
Bxf5 {[%clk 0:01:03.3]} 23. Bxc5 {[%clk 0:01:17.5]} 23... dxc5 {[%clk
0:01:01.9]} 24. gxf5 {[%clk 0:01:15.9]} 24... Nxc4+ {[%clk 0:00:49.6]} 25. Kd3
{[%clk 0:01:15.3]} 25... Nd6 {[%clk 0:00:35.7]} 26. fxg6 {[%clk 0:01:09.2]}
26... h5 {[%clk 0:00:22.3]} 27. Qxh5 {[%clk 0:01:05.1]} 27... Bg7 {[%clk
0:00:20.5]} 28. Qg4 {[%clk 0:00:40.8]} 28... Qf6 {[%clk 0:00:19.9]} 29. Rh3
{[%clk 0:00:36.7]} 29... Kf8 {[%clk 0:00:19]} 30. Rah1 {[%clk 0:00:36.1]} 30...
Rb8 {[%clk 0:00:17.3]} 31. Rh7 {[%clk 0:00:33]} 31... Rb2 {[%clk 0:00:14.3]} 32.
Rxg7 {[%clk 0:00:24.4]} 32... c4+ {[%clk 0:00:08.3]} 33. Ke3 {[%clk 0:00:24.2]}
33... Qxg7 {[%clk 0:00:03.1]} 34. Rh7 {[%clk 0:00:19]} 1-0

[Event "*** Titled Tuesday Blitz"]
[Site "Chess.com"]
[Date "2020.04.14"]
[Round "7"]
[White "Bagirova"]
[Black "NormWeinstein"]
[Result "0-1"]
[WhiteElo "2204"]
[BlackElo "2358"]
[TimeControl "180+1"]
[EndTime "11:14:17 PDT"]
[Termination "NormWeinstein won by checkmate"]

1. e4 {[%clk 0:02:44.7]} 1... c5 {[%clk 0:03:00]} 2. Nf3 {[%clk 0:02:43.1]} 2...
d6 {[%clk 0:03:00.5]} 3. d4 {[%clk 0:02:43.1]} 3... Nf6 {[%clk 0:03:01]} 4. Bd3
{[%clk 0:02:33.9]} 4... cxd4 {[%clk 0:03:01]} 5. Nxd4 {[%clk 0:02:32.9]} 5...
Nc6 {[%clk 0:03:01.5]} 6. Nxc6 {[%clk 0:02:30.9]} 6... bxc6 {[%clk 0:03:01.5]}
7. O-O {[%clk 0:02:30.1]} 7... e6 {[%clk 0:03:01.9]} 8. Nc3 {[%clk 0:02:27]}
8... Be7 {[%clk 0:03:01.7]} 9. Be3 {[%clk 0:02:24.7]} 9... O-O {[%clk
0:03:01.2]} 10. h3 {[%clk 0:02:23.7]} 10... d5 {[%clk 0:02:58.9]} 11. exd5
{[%clk 0:02:22.8]} 11... cxd5 {[%clk 0:02:58.9]} 12. Ne2 {[%clk 0:02:21.2]}
12... a5 {[%clk 0:02:57.5]} 13. c3 {[%clk 0:02:07.4]} 13... Ba6 {[%clk
0:02:56.5]} 14. Bc2 {[%clk 0:02:03.2]} 14... Rb8 {[%clk 0:02:45.6]} 15. Re1
{[%clk 0:02:03.4]} 15... Rxb2 {[%clk 0:02:38.3]} 16. Nd4 {[%clk 0:02:03.4]}
16... Rb7 {[%clk 0:02:15.6]} 17. Nc6 {[%clk 0:01:58.5]} 17... Qd6 {[%clk
0:02:03.9]} 18. Nxe7+ {[%clk 0:01:58.4]} 18... Qxe7 {[%clk 0:02:04.3]} 19. Bd4
{[%clk 0:01:51.8]} 19... Nd7 {[%clk 0:01:44.1]} 20. f4 {[%clk 0:01:36.6]} 20...
Qh4 {[%clk 0:01:16.9]} 21. Qf3 {[%clk 0:01:29.2]} 21... g6 {[%clk 0:01:03.5]}
22. Bf2 {[%clk 0:01:09.1]} 22... Qe7 {[%clk 0:00:55]} 23. h4 {[%clk 0:01:06.8]}
23... Nf6 {[%clk 0:00:51.8]} 24. Bd4 {[%clk 0:01:03.9]} 24... Ne4 {[%clk
0:00:50.4]} 25. Bxe4 {[%clk 0:00:55.7]} 25... dxe4 {[%clk 0:00:50.2]} 26. Qxe4
{[%clk 0:00:55.9]} 26... Bc4 {[%clk 0:00:41.6]} 27. h5 {[%clk 0:00:49.7]} 27...
Bd5 {[%clk 0:00:36.5]} 28. Qe5 {[%clk 0:00:32]} 28... f6 {[%clk 0:00:35.7]} 29.
Qxd5 {[%clk 0:00:30]} 29... exd5 {[%clk 0:00:35.1]} 30. Rxe7 {[%clk 0:00:30.2]}
30... Rxe7 {[%clk 0:00:35.4]} 31. Bc5 {[%clk 0:00:30.5]} 31... Rfe8 {[%clk
0:00:35.7]} 32. Bxe7 {[%clk 0:00:29.9]} 32... Rxe7 {[%clk 0:00:36.1]} 33. hxg6
{[%clk 0:00:23.8]} 33... hxg6 {[%clk 0:00:36.2]} 34. Rd1 {[%clk 0:00:20]} 34...
Rd7 {[%clk 0:00:34.1]} 35. c4 {[%clk 0:00:19.1]} 35... d4 {[%clk 0:00:33.7]} 36.
Kf2 {[%clk 0:00:19.3]} 36... Kf7 {[%clk 0:00:33.7]} 37. Kf3 {[%clk 0:00:19.7]}
37... Ke6 {[%clk 0:00:32.7]} 38. Re1+ {[%clk 0:00:17.6]} 38... Kd6 {[%clk
0:00:32.3]} 39. Rd1 {[%clk 0:00:16]} 39... Kc5 {[%clk 0:00:30.3]} 40. Ke4 {[%clk
0:00:16]} 40... Re7+ {[%clk 0:00:30.3]} 41. Kd3 {[%clk 0:00:16]} 41... Re3+
{[%clk 0:00:30.5]} 42. Kd2 {[%clk 0:00:15.6]} 42... Ra3 {[%clk 0:00:27.8]} 43.
Rb1 {[%clk 0:00:13.3]} 43... Rxa2+ {[%clk 0:00:27]} 44. Kd3 {[%clk 0:00:10.6]}
44... Ra3+ {[%clk 0:00:27.3]} 45. Ke4 {[%clk 0:00:10.8]} 45... Re3# {[%clk
0:00:25.9]} 0-1

[Event "*** Titled Tuesday Blitz"]
[Site "Chess.com"]
[Date "2020.04.14"]
[Round "7"]
[White "AlessiaSanteramo"]
[Black "norwaytoadog"]
[Result "1-0"]
[WhiteElo "2065"]
[BlackElo "2213"]
[TimeControl "180+1"]
[EndTime "11:14:19 PDT"]
[Termination "AlessiaSanteramo won on time"]

1. e4 {[%clk 0:03:00.9]} 1... e5 {[%clk 0:02:41.8]} 2. Nf3 {[%clk 0:02:57.3]}
2... Nc6 {[%clk 0:02:41.9]} 3. Bb5 {[%clk 0:02:53.4]} 3... a6 {[%clk 0:02:41.8]}
4. Ba4 {[%clk 0:02:51.7]} 4... Nf6 {[%clk 0:02:42]} 5. O-O {[%clk 0:02:51.9]}
5... Be7 {[%clk 0:02:42.3]} 6. Re1 {[%clk 0:02:52.5]} 6... b5 {[%clk 0:02:42.7]}
7. Bb3 {[%clk 0:02:53.1]} 7... d6 {[%clk 0:02:43]} 8. c3 {[%clk 0:02:53]} 8...
O-O {[%clk 0:02:43]} 9. d4 {[%clk 0:02:53.7]} 9... Bg4 {[%clk 0:02:42.4]} 10. d5
{[%clk 0:02:54]} 10... Na5 {[%clk 0:02:37]} 11. Bc2 {[%clk 0:02:54.5]} 11... c6
{[%clk 0:02:27.1]} 12. h3 {[%clk 0:02:54.5]} 12... Bd7 {[%clk 0:02:25.7]} 13.
Nxe5 {[%clk 0:02:50.5]} 13... dxe5 {[%clk 0:02:15.2]} 14. d6 {[%clk 0:02:50]}
14... Bxd6 {[%clk 0:02:00.2]} 15. Qxd6 {[%clk 0:02:50.9]} 15... Nc4 {[%clk
0:02:00.5]} 16. Qd3 {[%clk 0:02:42.2]} 16... Qc8 {[%clk 0:01:51.2]} 17. b3
{[%clk 0:02:41.5]} 17... Na5 {[%clk 0:01:47.8]} 18. Ba3 {[%clk 0:02:39.9]} 18...
Re8 {[%clk 0:01:46.2]} 19. Qg3 {[%clk 0:02:22.6]} 19... c5 {[%clk 0:01:41.5]}
20. Bc1 {[%clk 0:02:18.4]} 20... Qc6 {[%clk 0:01:32.8]} 21. Nd2 {[%clk
0:02:05.1]} 21... Rad8 {[%clk 0:01:28.5]} 22. Nf1 {[%clk 0:02:04.8]} 22... b4
{[%clk 0:01:21.1]} 23. Ne3 {[%clk 0:01:58.3]} 23... bxc3 {[%clk 0:01:17.1]} 24.
Nf5 {[%clk 0:01:57.9]} 24... Bxf5 {[%clk 0:01:17.2]} 25. exf5 {[%clk 0:01:58.3]}
25... Rd4 {[%clk 0:01:05.5]} 26. Qxc3 {[%clk 0:01:56.1]} 26... Nb7 {[%clk
0:01:02.2]} 27. Be3 {[%clk 0:01:55.4]} 27... Ne4 {[%clk 0:00:48.4]} 28. Bxe4
{[%clk 0:01:53.1]} 28... Rxe4 {[%clk 0:00:48.3]} 29. a3 {[%clk 0:01:37.1]} 29...
Nd6 {[%clk 0:00:46.9]} 30. f6 {[%clk 0:01:37.6]} 30... c4 {[%clk 0:00:42.9]} 31.
fxg7 {[%clk 0:01:35.1]} 31... Nf5 {[%clk 0:00:41.3]} 32. Rac1 {[%clk 0:01:25.9]}
32... Qg6 {[%clk 0:00:40.2]} 33. Kh2 {[%clk 0:00:44.1]} 33... Nh4 {[%clk
0:00:35.2]} 34. Rg1 {[%clk 0:00:44.2]} 34... f5 {[%clk 0:00:29.6]} 35. f3 {[%clk
0:00:39.1]} 35... f4 {[%clk 0:00:17.4]} 36. fxe4 {[%clk 0:00:37.3]} 36... Qg3+
{[%clk 0:00:17.3]} 37. Kh1 {[%clk 0:00:35.8]} 37... Nf3 {[%clk 0:00:14.9]} 38.
Qxc4+ {[%clk 0:00:21.3]} 38... Kxg7 {[%clk 0:00:14.5]} 39. gxf3 {[%clk
0:00:21.7]} 1-0

[Event "*** Titled Tuesday Blitz"]
[Site "Chess.com"]
[Date "2020.04.14"]
[Round "7"]
[White "powermove"]
[Black "mirochka"]
[Result "0-1"]
[WhiteElo "1504"]
[BlackElo "2199"]
[TimeControl "180+1"]
[EndTime "11:14:19 PDT"]
[Termination "mirochka won by resignation"]

1. Nf3 {[%clk 0:03:00.9]} 1... d5 {[%clk 0:02:59.2]} 2. c4 {[%clk 0:03:00.6]}
2... d4 {[%clk 0:02:54.9]} 3. e3 {[%clk 0:02:59.7]} 3... c5 {[%clk 0:02:49.2]}
4. exd4 {[%clk 0:02:58.3]} 4... cxd4 {[%clk 0:02:49]} 5. d3 {[%clk 0:02:58.1]}
5... g6 {[%clk 0:02:45.5]} 6. g3 {[%clk 0:02:56.7]} 6... Bg7 {[%clk 0:02:44.7]}
7. Bg2 {[%clk 0:02:56.7]} 7... Nf6 {[%clk 0:02:37.6]} 8. O-O {[%clk 0:02:55.7]}
8... O-O {[%clk 0:02:37.8]} 9. b4 {[%clk 0:02:55.6]} 9... Nfd7 {[%clk
0:02:24.3]} 10. Bb2 {[%clk 0:02:54.1]} 10... a5 {[%clk 0:02:16.8]} 11. Bxd4
{[%clk 0:02:40.4]} 11... Bxd4 {[%clk 0:02:13.9]} 12. Nxd4 {[%clk 0:02:39.9]}
12... axb4 {[%clk 0:02:14.4]} 13. a3 {[%clk 0:02:38.3]} 13... Nc5 {[%clk
0:02:05.3]} 14. Nb5 {[%clk 0:02:27.3]} 14... Qxd3 {[%clk 0:01:43.3]} 15. Qxd3
{[%clk 0:02:19.1]} 15... Nxd3 {[%clk 0:01:44.2]} 16. Rd1 {[%clk 0:02:16]} 16...
Ne5 {[%clk 0:01:42]} 17. c5 {[%clk 0:01:14.1]} 17... Nbc6 {[%clk 0:01:30.2]} 18.
f4 {[%clk 0:01:02.8]} 18... Nc4 {[%clk 0:01:26.7]} 19. Bd5 {[%clk 0:00:52.8]}
19... Ne3 {[%clk 0:01:22.6]} 20. Rd3 {[%clk 0:00:52.7]} 20... Nxd5 {[%clk
0:01:12.1]} 21. Rxd5 {[%clk 0:00:52.6]} 21... Be6 {[%clk 0:01:11.5]} 22. Rd1
{[%clk 0:00:49.2]} 22... Bc4 {[%clk 0:01:05.3]} 23. Nc7 {[%clk 0:00:40.2]} 23...
Rad8 {[%clk 0:01:01.2]} 24. Rc1 {[%clk 0:00:33.5]} 24... b3 {[%clk 0:00:54.8]}
25. Rxc4 {[%clk 0:00:30.4]} 25... b2 {[%clk 0:00:54.4]} 26. Ra2 {[%clk 0:00:30]}
26... Rd1+ {[%clk 0:00:53.6]} 27. Kf2 {[%clk 0:00:29.6]} 27... Rxb1 {[%clk
0:00:53.3]} 28. Rc2 {[%clk 0:00:11.9]} 28... Rc8 {[%clk 0:00:50.3]} 29. Nd5
{[%clk 0:00:07.1]} 29... Rd8 {[%clk 0:00:47.3]} 30. Nc3 {[%clk 0:00:04.7]} 30...
Rh1 {[%clk 0:00:33]} 31. Rcxb2 {[%clk 0:00:04.7]} 31... Rxh2+ {[%clk 0:00:31.7]}
32. Kf3 {[%clk 0:00:04.9]} 32... Rxb2 {[%clk 0:00:26.9]} 33. Rxb2 {[%clk
0:00:04.1]} 33... Rd3+ {[%clk 0:00:27.4]} 34. Kg4 {[%clk 0:00:03.9]} 34... Rxc3
{[%clk 0:00:27.8]} 35. Rxb7 {[%clk 0:00:04.1]} 35... Rxc5 {[%clk 0:00:27.8]} 36.
Rc7 {[%clk 0:00:03.8]} 36... Ne5+ {[%clk 0:00:25.2]} 37. fxe5 {[%clk 0:00:03.3]}
37... Rxc7 {[%clk 0:00:25.8]} 38. a4 {[%clk 0:00:03.7]} 38... Ra7 {[%clk
0:00:26.1]} 39. Kf4 {[%clk 0:00:04.5]} 39... Rxa4+ {[%clk 0:00:26.3]} 0-1

[Event "*** Titled Tuesday Blitz"]
[Site "Chess.com"]
[Date "2020.04.14"]
[Round "7"]
[White "GMBenjaminBok"]
[Black "AlleyOoper"]
[Result "0-1"]
[WhiteElo "2836"]
[BlackElo "2613"]
[TimeControl "180+1"]
[EndTime "11:14:21 PDT"]
[Termination "AlleyOoper won by resignation"]

1. c4 {[%clk 0:03:00.9]} 1... b6 {[%clk 0:02:58.7]} 2. g3 {[%clk 0:02:58.5]}
2... Bb7 {[%clk 0:02:59.2]} 3. Nf3 {[%clk 0:02:59.1]} 3... g6 {[%clk 0:02:57.6]}
4. Bg2 {[%clk 0:02:58.5]} 4... Bg7 {[%clk 0:02:57.5]} 5. d4 {[%clk 0:02:58]}
5... Nf6 {[%clk 0:02:57.8]} 6. O-O {[%clk 0:02:57.7]} 6... O-O {[%clk
0:02:58.1]} 7. d5 {[%clk 0:02:57.8]} 7... Na6 {[%clk 0:02:58.1]} 8. Nc3 {[%clk
0:02:57.2]} 8... Nc5 {[%clk 0:02:58.7]} 9. Nd4 {[%clk 0:02:53]} 9... e5 {[%clk
0:02:59]} 10. Nb3 {[%clk 0:02:52.1]} 10... Nxb3 {[%clk 0:02:56]} 11. axb3 {[%clk
0:02:51.3]} 11... d6 {[%clk 0:02:51.9]} 12. b4 {[%clk 0:02:50.1]} 12... Nd7
{[%clk 0:02:50.6]} 13. e4 {[%clk 0:02:47.4]} 13... a6 {[%clk 0:02:30.9]} 14. Be3
{[%clk 0:02:44.6]} 14... Qe7 {[%clk 0:02:31.1]} 15. Qd3 {[%clk 0:02:41.4]} 15...
Rae8 {[%clk 0:02:31]} 16. Bh3 {[%clk 0:02:40.6]} 16... f5 {[%clk 0:02:28.7]} 17.
f3 {[%clk 0:02:31.8]} 17... f4 {[%clk 0:02:28]} 18. Bf2 {[%clk 0:02:31.2]} 18...
Nf6 {[%clk 0:02:14.6]} 19. c5 {[%clk 0:02:21]} 19... fxg3 {[%clk 0:01:59.8]} 20.
hxg3 {[%clk 0:02:20.4]} 20... Nh5 {[%clk 0:01:57.8]} 21. c6 {[%clk 0:02:14.2]}
21... Bc8 {[%clk 0:01:53.9]} 22. Bxc8 {[%clk 0:02:13.5]} 22... Rxc8 {[%clk
0:01:53.3]} 23. Rxa6 {[%clk 0:02:12.9]} 23... Qg5 {[%clk 0:01:46.3]} 24. Ne2
{[%clk 0:02:07.8]} 24... Bh6 {[%clk 0:01:34.2]} 25. Ra7 {[%clk 0:02:05.2]} 25...
Rf7 {[%clk 0:01:34.2]} 26. Rfa1 {[%clk 0:01:49.6]} 26... Rff8 {[%clk 0:00:59.9]}
27. Rb7 {[%clk 0:01:48.6]} 27... Rf7 {[%clk 0:00:58.9]} 28. Rba7 {[%clk
0:01:44.3]} 28... Rff8 {[%clk 0:00:58]} 29. Kg2 {[%clk 0:01:43.6]} 29... Nf4+
{[%clk 0:00:46]} 30. Nxf4 {[%clk 0:01:42.8]} 30... exf4 {[%clk 0:00:46.4]} 31.
g4 {[%clk 0:01:40.7]} 31... Bg7 {[%clk 0:00:46.7]} 32. Rb7 {[%clk 0:01:38.1]}
32... h5 {[%clk 0:00:46.7]} 33. Raa7 {[%clk 0:00:51.7]} 33... hxg4 {[%clk
0:00:44.8]} 34. Rxc7 {[%clk 0:00:50]} 34... gxf3+ {[%clk 0:00:33.7]} 35. Kxf3
{[%clk 0:00:47.4]} 35... Qh5+ {[%clk 0:00:26.3]} 36. Kg2 {[%clk 0:00:47.2]}
36... f3+ {[%clk 0:00:24.5]} 37. Kg1 {[%clk 0:00:40.6]} 37... Rxc7 {[%clk
0:00:20.5]} 38. Rxc7 {[%clk 0:00:40]} 38... Be5 {[%clk 0:00:20.7]} 39. Re7
{[%clk 0:00:08.4]} 39... Qh2+ {[%clk 0:00:14.6]} 40. Kf1 {[%clk 0:00:08.8]}
40... Qh1+ {[%clk 0:00:13.4]} 41. Bg1 {[%clk 0:00:09.3]} 41... f2 {[%clk
0:00:13.6]} 0-1

[Event "*** Titled Tuesday Blitz"]
[Site "Chess.com"]
[Date "2020.04.14"]
[Round "7"]
[White "iulik86"]
[Black "ftorodent"]
[Result "1-0"]
[WhiteElo "2533"]
[BlackElo "2633"]
[TimeControl "180+1"]
[EndTime "11:14:22 PDT"]
[Termination "iulik86 won by resignation"]

1. d4 {[%clk 0:03:00.9]} 1... d5 {[%clk 0:02:58.8]} 2. c4 {[%clk 0:03:00.4]}
2... e6 {[%clk 0:02:59]} 3. Nf3 {[%clk 0:03:00.2]} 3... Nf6 {[%clk 0:02:58.3]}
4. Nc3 {[%clk 0:02:59.7]} 4... Be7 {[%clk 0:02:58.2]} 5. Bf4 {[%clk 0:02:58.8]}
5... O-O {[%clk 0:02:57.9]} 6. e3 {[%clk 0:02:59.1]} 6... Nbd7 {[%clk
0:02:58.1]} 7. c5 {[%clk 0:02:55.9]} 7... c6 {[%clk 0:02:56.9]} 8. h3 {[%clk
0:02:54.2]} 8... b6 {[%clk 0:02:56.9]} 9. b4 {[%clk 0:02:54.1]} 9... a5 {[%clk
0:02:56.8]} 10. a3 {[%clk 0:02:51.6]} 10... Bb7 {[%clk 0:02:56.9]} 11. Bd3
{[%clk 0:02:49.2]} 11... Qc8 {[%clk 0:02:57]} 12. O-O {[%clk 0:02:44.4]} 12...
Ba6 {[%clk 0:02:56.9]} 13. Qe2 {[%clk 0:02:39.9]} 13... Qb7 {[%clk 0:02:49.7]}
14. Rfb1 {[%clk 0:02:35.9]} 14... Bxd3 {[%clk 0:02:46.4]} 15. Qxd3 {[%clk
0:02:35.6]} 15... axb4 {[%clk 0:02:45.9]} 16. axb4 {[%clk 0:02:35.3]} 16... Rxa1
{[%clk 0:02:41.3]} 17. Rxa1 {[%clk 0:02:35.2]} 17... Ra8 {[%clk 0:02:41.2]} 18.
Rxa8+ {[%clk 0:02:34]} 18... Qxa8 {[%clk 0:02:40.9]} 19. Qc2 {[%clk 0:02:24.4]}
19... h6 {[%clk 0:02:05.9]} 20. Qb2 {[%clk 0:02:19.5]} 20... bxc5 {[%clk
0:02:01.1]} 21. bxc5 {[%clk 0:02:19.1]} 21... Bd8 {[%clk 0:01:55.4]} 22. Ne5
{[%clk 0:02:08.5]} 22... Nxe5 {[%clk 0:01:54.2]} 23. Bxe5 {[%clk 0:02:09.4]}
23... Nd7 {[%clk 0:01:53.6]} 24. Bd6 {[%clk 0:02:09.4]} 24... Qa6 {[%clk
0:01:39]} 25. g3 {[%clk 0:02:00.9]} 25... f6 {[%clk 0:01:38.8]} 26. Qc2 {[%clk
0:01:52.9]} 26... Kf7 {[%clk 0:01:23.9]} 27. Ne2 {[%clk 0:01:47.2]} 27... e5
{[%clk 0:01:07.8]} 28. dxe5 {[%clk 0:01:40]} 28... Nxe5 {[%clk 0:01:07.3]} 29.
Nd4 {[%clk 0:01:27.5]} 29... Qc8 {[%clk 0:00:48.4]} 30. Kg2 {[%clk 0:01:23.1]}
30... Nc4 {[%clk 0:00:47.9]} 31. Qa4 {[%clk 0:01:13.4]} 31... Nxd6 {[%clk
0:00:37.8]} 32. cxd6 {[%clk 0:01:12.7]} 32... c5 {[%clk 0:00:38]} 33. d7 {[%clk
0:01:00.1]} 33... Qb7 {[%clk 0:00:37.6]} 34. Nc6 {[%clk 0:00:58.7]} 34... Qc7
{[%clk 0:00:32.7]} 35. Qa8 {[%clk 0:00:47.3]} 35... Qxd7 {[%clk 0:00:22.2]} 36.
Nxd8+ {[%clk 0:00:47.1]} 36... Ke7 {[%clk 0:00:22.8]} 37. Nc6+ {[%clk
0:00:45.9]} 37... Kd6 {[%clk 0:00:22.7]} 38. Na5 {[%clk 0:00:45.6]} 38... Qb5
{[%clk 0:00:20]} 39. Qd8+ {[%clk 0:00:42.7]} 39... Ke6 {[%clk 0:00:19.5]} 40.
Qc7 {[%clk 0:00:38.8]} 40... d4 {[%clk 0:00:16]} 41. exd4 {[%clk 0:00:34.4]}
41... cxd4 {[%clk 0:00:16]} 42. Qc4+ {[%clk 0:00:29]} 42... Qxc4 {[%clk
0:00:15.5]} 43. Nxc4 {[%clk 0:00:28.6]} 43... Kd5 {[%clk 0:00:15.5]} 44. Nd2
{[%clk 0:00:28.1]} 44... d3 {[%clk 0:00:15.6]} 45. Kf3 {[%clk 0:00:28.2]} 45...
Kd4 {[%clk 0:00:15.6]} 46. h4 {[%clk 0:00:25.9]} 46... f5 {[%clk 0:00:15.6]} 47.
h5 {[%clk 0:00:25.8]} 1-0

[Event "*** Titled Tuesday Blitz"]
[Site "Chess.com"]
[Date "2020.04.14"]
[Round "7"]
[White "Zurability"]
[Black "Jospem"]
[Result "0-1"]
[WhiteElo "2728"]
[BlackElo "2903"]
[TimeControl "180+1"]
[EndTime "11:14:23 PDT"]
[Termination "Jospem won by checkmate"]

1. d4 {[%clk 0:03:00.9]} 1... Nf6 {[%clk 0:03:00.2]} 2. Nf3 {[%clk 0:02:59.7]}
2... e6 {[%clk 0:03:00.5]} 3. c4 {[%clk 0:03:00.1]} 3... Bb4+ {[%clk 0:03:00.9]}
4. Nbd2 {[%clk 0:03:00]} 4... O-O {[%clk 0:03:00.7]} 5. g3 {[%clk 0:02:58.3]}
5... b6 {[%clk 0:02:59.1]} 6. Bg2 {[%clk 0:02:58.6]} 6... Bb7 {[%clk 0:02:59.7]}
7. O-O {[%clk 0:02:58.7]} 7... a5 {[%clk 0:03:00]} 8. Qc2 {[%clk 0:02:57.7]}
8... Bxd2 {[%clk 0:02:53.6]} 9. Bxd2 {[%clk 0:02:57.6]} 9... Be4 {[%clk
0:02:53.5]} 10. Qa4 {[%clk 0:02:51.7]} 10... d6 {[%clk 0:02:47.1]} 11. Rfe1
{[%clk 0:02:44.2]} 11... Qd7 {[%clk 0:02:46.6]} 12. Qa3 {[%clk 0:02:42.8]} 12...
b5 {[%clk 0:02:42.3]} 13. cxb5 {[%clk 0:02:40.3]} 13... Qxb5 {[%clk 0:02:43.2]}
14. Rac1 {[%clk 0:02:38.2]} 14... Nc6 {[%clk 0:02:39.8]} 15. e3 {[%clk
0:02:31.5]} 15... Rfb8 {[%clk 0:02:35.5]} 16. Bc3 {[%clk 0:02:12]} 16... Nb4
{[%clk 0:02:33.3]} 17. Bf1 {[%clk 0:01:24.3]} 17... Qb7 {[%clk 0:02:25.5]} 18.
Nd2 {[%clk 0:01:21.4]} 18... Nc2 {[%clk 0:02:23.8]} 19. Rxc2 {[%clk 0:01:15.4]}
19... Bxc2 {[%clk 0:02:24.7]} 20. Bg2 {[%clk 0:01:15.5]} 20... d5 {[%clk
0:02:19.9]} 21. Rc1 {[%clk 0:01:10.1]} 21... Bf5 {[%clk 0:02:14.9]} 22. Nb3
{[%clk 0:01:10.2]} 22... a4 {[%clk 0:02:03]} 23. Nc5 {[%clk 0:01:09.9]} 23...
Qb5 {[%clk 0:02:03.4]} 24. Bf1 {[%clk 0:01:08.5]} 24... Qe8 {[%clk 0:02:03.3]}
25. Bb4 {[%clk 0:01:02.5]} 25... Rb6 {[%clk 0:01:59.1]} 26. Qc3 {[%clk
0:01:02.2]} 26... Ne4 {[%clk 0:01:53.3]} 27. Nxe4 {[%clk 0:00:59]} 27... Bxe4
{[%clk 0:01:54.2]} 28. a3 {[%clk 0:00:58.1]} 28... c6 {[%clk 0:01:49.8]} 29. Qc5
{[%clk 0:00:55.6]} 29... Rbb8 {[%clk 0:01:46]} 30. Qd6 {[%clk 0:00:48]} 30...
Rd8 {[%clk 0:01:43.4]} 31. Qc7 {[%clk 0:00:36]} 31... Rdc8 {[%clk 0:01:42]} 32.
Qb6 {[%clk 0:00:35.3]} 32... Qd8 {[%clk 0:01:33.7]} 33. Qc5 {[%clk 0:00:30.5]}
33... Qf6 {[%clk 0:01:33.3]} 34. Be2 {[%clk 0:00:28.4]} 34... Qf5 {[%clk
0:01:26.8]} 35. f3 {[%clk 0:00:27.3]} 35... Bd3 {[%clk 0:01:23.7]} 36. g4 {[%clk
0:00:21.3]} 36... Qg6 {[%clk 0:01:22.5]} 37. Kf2 {[%clk 0:00:18.8]} 37... Bxe2
{[%clk 0:01:21.6]} 38. Kxe2 {[%clk 0:00:19.7]} 38... h5 {[%clk 0:01:22]} 39. h3
{[%clk 0:00:19.6]} 39... hxg4 {[%clk 0:01:22]} 40. hxg4 {[%clk 0:00:20.5]} 40...
Qh7 {[%clk 0:01:21.9]} 41. Rc2 {[%clk 0:00:19]} 41... Qh1 {[%clk 0:01:18.7]} 42.
Qd6 {[%clk 0:00:15.8]} 42... Qg2+ {[%clk 0:01:17.2]} 43. Kd3 {[%clk 0:00:15]}
43... Qxf3 {[%clk 0:01:17.5]} 44. Qe5 {[%clk 0:00:12.7]} 44... Qxg4 {[%clk
0:01:02.5]} 45. Rf2 {[%clk 0:00:12.6]} 45... f6 {[%clk 0:01:00.7]} 46. Qd6
{[%clk 0:00:11.7]} 46... Re8 {[%clk 0:00:55.5]} 47. Qxc6 {[%clk 0:00:09.7]}
47... Rac8 {[%clk 0:00:53.8]} 48. Qxa4 {[%clk 0:00:10]} 48... Qg1 {[%clk
0:00:46.9]} 49. Re2 {[%clk 0:00:09.5]} 49... Qb1+ {[%clk 0:00:46.1]} 50. Rc2
{[%clk 0:00:08]} 50... g5 {[%clk 0:00:35.9]} 51. Bc3 {[%clk 0:00:06.4]} 51...
Qd1+ {[%clk 0:00:35.2]} 52. Bd2 {[%clk 0:00:05.9]} 52... Qf1# {[%clk 0:00:30.5]}
0-1